bitfinex-derivatives/quotes_SOLF0:USTF0_20241103
["timestamp","ask_amount","ask_price","bid_price","bid_amount"]
[1730645947687,3.1405,159.25,159.12,4.24]
[1730645948099,0.3364,159.33,159.12,4.24]
[1730645948285,8.14298171,159.32,159.13,1.15439938]
[1730645948484,3.90298171,159.31,159.13,1.15439938]
[1730645948691,3.1398,159.29,159.24,3.1405]
[1730645948891,3.90298171,159.28,159.24,3.1405]
[1730645949090,4.24,159.32,159.24,3.1405]
[1730645949294,3.1398,159.29,159.25,3.1403]
[1730645949484,4.24,159.32,159.23,1.4001]
[1730645949682,3.9001652,159.31,159.23,1.4001]
[1730645949895,3.9001652,159.3,159.23,1.4001]
[1730645950202,3.89865017,159.29,159.23,1.4001]
[1730645950496,3.14,159.28,159.23,4.5408]
[1730645950703,4.24,159.33,159.23,1.4001]
[1730645950900,3.89518933,159.32,159.23,1.4001]
[1730645951104,4.24,159.33,159.25,3.1404]
[1730645951105,3.1398,159.29,159.25,3.1404]
[1730645951398,3.1398,159.29,159.23,1.4001]
[1730645951586,3.1398,159.29,159.24,3.1406]
[1730645952101,3.1394,159.31,159.23,1.4001]
[1730645952312,4.24,159.35,159.23,1.4001]
[1730645952504,3.89031491,159.34,159.23,1.4001]
[1730645952687,4.24,159.36,159.3,3.1393]
[1730645952893,3.89040065,159.35,159.3,3.1393]
[1730645953193,3.1386,159.35,159.3,3.1393]
[1730645953390,4.24,159.36,159.3,3.1393]
[1730645953584,3.1389,159.33,159.29,3.1396]
[1730645953785,4.24,159.36,159.23,1.4001]
[1730645954192,3.1387,159.34,159.26,3.1401]
[1730645954396,4.24,159.36,159.27,2.6626]
[1730645955100,3.139,159.33,159.27,2.6626]
[1730645955602,3.1393,159.31,159.27,2.6626]
[1730645955795,4.24,159.36,159.27,2.6626]
[1730645955992,3.88149967,159.35,159.27,2.6626]
[1730645956195,3.1391,159.32,159.27,5.8026]
[1730645957600,4.24,159.36,159.25,3.1404]
[1730645957799,3.87804901,159.35,159.23,1.4001]
[1730645958106,4.24,159.36,159.23,1.4001]
[1730645958107,3.1393,159.31,159.27,3.1399]
[1730645958508,4.24,159.36,159.23,1.4001]
[1730645958801,3.1391,159.32,159.23,1.4001]
[1730645959008,4.24,159.36,159.29,3.1397]
[1730645959207,3.1387,159.34,159.23,1.4001]
[1730645959600,3.1387,159.34,159.26,3.1402]
[1730645959800,3.1387,159.34,159.27,2.6604]
[1730645960312,3.1387,159.34,159.3,3.1393]
[1730645960511,3.1387,159.34,159.27,2.6604]
[1730645961010,4.24,159.37,159.27,2.6604]
[1730645961212,45.26,159.41,159.27,2.6604]
[1730645961416,8.11460439,159.4,159.27,2.6604]
[1730645961617,4.24,159.4,159.27,2.6604]
[1730645961817,3.1385,159.36,159.32,3.139]
[1730645961997,3.1385,159.36,159.27,2.6604]
[1730645962514,3.1385,159.36,159.32,3.139]
[1730645962720,3.1385,159.36,159.3,3.21713356]
[1730645963016,3.1385,159.36,159.32,3.1389]
[1730645963202,3.1385,159.36,159.3,3.06205316]
[1730645963401,3.1385,159.36,159.27,2.6604]
[1730645963700,9.4032,159.56,159.27,2.6604]
[1730645963701,18.88,159.48,159.27,2.6604]
[1730645963913,4.24,159.45,159.27,2.6604]
[1730645964107,4.24,159.45,159.36,3.1381]
[1730645964308,3.1375,159.4,159.34,3.20865751]
[1730645964613,4.24,159.45,159.36,3.1381]
[1730645964814,18.88,159.48,159.36,3.1381]
[1730645965115,65.70957092,159.43,159.32,4.24]
[1730645965411,65.70957092,159.43,159.32,7.3634267]
[1730645965614,3.1376,159.4,159.32,4.24]
[1730645965801,65.70957092,159.43,159.32,4.24]
[1730645966002,0.3336,159.42,159.28,4.24]
[1730645966204,4.1997047,159.42,159.28,4.24]
[1730645966406,0.3336,159.42,159.28,4.24]
[1730645966799,3.1379,159.38,159.28,4.24]
[1730645967001,0.3336,159.42,159.28,4.24]
[1730645967609,3.1379,159.39,159.35,3.1384]
[1730645967816,0.3336,159.42,159.35,3.1384]
[1730645968010,3.1378,159.39,159.35,3.1384]
[1730645968208,0.3336,159.42,159.35,3.1384]
[1730645968411,3.1378,159.39,159.35,3.1384]
[1730645968917,0.3336,159.42,159.35,3.1384]
[1730645969218,3.1379,159.38,159.35,3.1384]
[1730645969516,3.1379,159.38,159.34,3.1387]
[1730645969808,6.2724,159.47,159.28,4.24]
[1730645969809,18.88,159.48,159.32,3.08670635]
[1730645970002,18.88,159.48,159.37,3.138]
[1730645970003,3.1376,159.4,159.37,3.138]
[1730645970205,23.12,159.47,159.34,2.7803]
[1730645970400,23.12,159.47,159.33,5.5854]
[1730645970401,18.88,159.45,159.33,4.24]
[1730645970610,0.3337,159.44,159.29,4.22]
[1730645970814,18.88,159.43,159.27,4.22]
[1730645971008,4.5537,159.44,159.27,4.22]
[1730645971211,4.5537,159.44,159.27,7.42471363]
[1730645971514,3.1381,159.38,159.27,7.42471363]
[1730645972103,3.1383,159.36,159.31,3.1391]
[1730645972303,4.22,159.43,159.27,7.42471363]
[1730645972304,23.1,159.43,159.27,7.42471363]
[1730645972721,3.1389,159.33,159.29,3.1395]
[1730645973022,3.1389,159.33,159.27,4.22]
[1730645973205,3.1389,159.33,159.3,3.1394]
[1730645973412,3.1387,159.34,159.3,3.1394]
[1730645973613,3.1387,159.34,159.27,7.30294016]
[1730645973916,3.1387,159.34,159.3,3.1393]
[1730645974416,3.1387,159.34,159.25,4.0374]
[1730645974417,3.1391,159.32,159.28,3.1397]
[1730645974612,4.22,159.38,159.28,3.1397]
[1730645975007,4.22,159.38,159.25,2.7109]
[1730645975008,23.1,159.38,159.25,2.7109]
[1730645975315,23.1,159.38,159.21,7.28282213]
[1730645975518,23.1,159.38,159.21,4.22]
[1730645976015,18.88,159.42,159.21,4.22]
[1730645976214,3.85313979,159.37,159.21,4.22]
[1730645976520,3.1389,159.34,159.21,4.22]
[1730645977110,3.1389,159.34,159.29,3.1395]
[1730645977617,4.22,159.38,159.29,3.1395]
[1730645977618,3.1391,159.32,159.29,3.1395]
[1730645979818,3.1391,159.32,159.21,4.22]
[1730645979819,23.1,159.38,159.25,3.1404]
[1730645980026,0.3352,159.37,159.25,3.1404]
[1730645980611,3.1398,159.29,159.25,3.1404]
[1730645981119,4.22,159.33,159.25,3.1404]
[1730645981320,4.22,159.33,159.21,4.22]
[1730645981928,3.1402,159.27,159.23,3.1408]
[1730645982313,4.22,159.33,159.23,3.1408]
[1730645982511,4.22,159.33,159.2,7.15476288]
[1730645982512,23.1,159.33,159.2,2.6548]
[1730645983118,23.1,159.33,159.18,36.3884437]
[1730645983626,18.88,159.33,159.18,36.3884437]
[1730645984011,3.1409,159.23,159.19,3.1415]
[1730645984218,18.88,159.33,159.15,4.22]
[1730645984219,4.22,159.28,159.15,4.22]
[1730645984615,3.1407,159.24,159.2,3.1413]
[1730645984920,4.22,159.28,159.15,4.22]
[1730645985121,4.22,159.28,159.2,3.1414]
[1730645985122,3.1406,159.25,159.2,3.1414]
[1730645985313,4.22,159.28,159.2,3.1414]
[1730645985514,4.22,159.28,159.15,4.22]
[1730645985811,3.1406,159.25,159.21,3.1411]
[1730645986114,3.1408,159.24,159.21,3.1412]
[1730645986314,4.22,159.28,159.15,4.22]
[1730645986719,3.1405,159.25,159.21,3.1411]
[1730645987121,3.141,159.23,159.19,3.1415]
[1730645989009,4.22,159.28,159.15,4.22]
[1730645989216,3.1405,159.25,159.15,4.22]
[1730645989931,4.22,159.31,159.15,4.22]
[1730645990427,3.1406,159.25,159.15,4.22]
[1730645990627,23.1,159.31,159.15,4.22]
[1730645990922,0.3361,159.3,159.15,4.22]
[1730645992129,18.88,159.38,159.15,10.5048]
[1730645992426,23.4371,159.37,159.16,1.15423242]
[1730645992925,18.88,159.42,159.16,20.02423242]
[1730645993235,4.22,159.41,159.17,1.15423242]
[1730645993821,3.1383,159.36,159.32,3.1389]
[1730645994023,4.22,159.41,159.3,3.14364741]
[1730645994225,4.22,159.41,159.31,1.3145]
[1730645994523,3.1379,159.39,159.35,3.1383]
[1730645994721,4.22,159.41,159.32,3.0757938]
[1730645994919,4.22,159.43,159.32,3.0757938]
[1730645995112,3.1375,159.41,159.37,3.1381]
[1730645995726,3.1375,159.4,159.32,3.0757938]
[1730645995925,4.22,159.43,159.32,3.0757938]
[1730645996226,4.22,159.43,159.31,1.3145]
[1730645996418,3.1374,159.41,159.31,1.3145]
[1730645996723,3.1374,159.41,159.31,4.42764654]
[1730645996926,3.1374,159.41,159.31,1.3145]
[1730645997528,4.22,159.43,159.31,4.52432421]
[1730645998125,3.1378,159.39,159.31,4.52432421]
[1730645998632,23.1,159.43,159.31,1.3145]
[1730645999225,3.1387,159.35,159.31,4.4537]
[1730645999633,3.1387,159.35,159.31,3.1392]
[1730645999830,3.1377,159.39,159.31,3.1392]
[1730646000036,23.1,159.43,159.29,2.6624]
[1730646000529,4.22,159.43,159.29,2.6624]
[1730646001037,3.1391,159.32,159.29,1.3668]
[1730646001221,26.1628027,159.43,159.29,1.3668]
[1730646001222,4.2,159.38,159.29,1.3668]
[1730646001536,3.1395,159.3,159.27,3.14]
[1730646001726,23.08,159.38,159.24,1.3622]
[1730646001727,0.3339,159.37,159.24,1.3622]
[1730646002129,0.3339,159.37,159.24,4.43002523]
[1730646002426,0.3339,159.37,159.27,3.1399]
[1730646002730,0.3339,159.37,159.24,1.3622]
[1730646002937,3.14,159.28,159.24,4.5028]
[1730646003134,23.08,159.38,159.24,1.3622]
[1730646003434,23.08,159.38,159.21,4.2]
[1730646003635,23.08,159.38,159.19,1.4097]
[1730646003941,3.1383,159.37,159.29,3.1395]
[1730646004134,18.88,159.42,159.29,3.1395]
[1730646004339,18.88,159.4,159.26,3.21083175]
[1730646004532,3.1388,159.34,159.3,3.1393]
[1730646005051,3.1393,159.31,159.27,5.9305]
[1730646005226,4.2,159.38,159.27,2.7905]
[1730646005428,23.08,159.38,159.27,2.7905]
[1730646005832,4.2,159.38,159.27,5.89551811]
[1730646006638,4.2,159.38,159.3,3.1394]
[1730646007737,23.08,159.38,159.25,4.2]
[1730646007923,23.08,159.38,159.21,8.2187]
[1730646008127,3.1401,159.27,159.23,3.1407]
[1730646008333,3.1401,159.27,159.21,8.2187]
[1730646008736,3.1399,159.28,159.24,3.1405]
[1730646009035,4.2,159.32,159.24,3.1405]
[1730646009739,3.14,159.28,159.24,3.1405]
[1730646010337,3.14,159.28,159.21,8.2187]
[1730646010542,3.1395,159.3,159.21,8.2187]
[1730646011037,3.139,159.33,159.29,3.1395]
[1730646011241,4.2,159.35,159.29,3.1395]
[1730646011535,4.2,159.35,159.21,8.2187]
[1730646011739,3.1392,159.32,159.21,8.2187]
[1730646012136,3.1392,159.32,159.28,3.1397]
[1730646012536,3.1389,159.33,159.21,8.2187]
[1730646012745,3.1389,159.33,159.29,3.1395]
[1730646013849,0.3354,159.39,159.28,3.16279173]
[1730646014039,3.90173742,159.38,159.29,4.1138]
[1730646014240,4.2,159.4,159.29,7.17862776]
[1730646014544,4.2,159.4,159.35,3.1384]
[1730646014545,3.138,159.38,159.35,3.1384]
[1730646015038,4.2,159.4,159.29,7.17862776]
[1730646015039,4.2,159.4,159.32,3.139]
[1730646015245,4.2,159.43,159.29,7.17862776]
[1730646015431,3.90419117,159.42,159.29,7.17862776]
[1730646015637,3.1377,159.4,159.36,3.1382]
[1730646015840,4.2,159.43,159.29,7.17862776]
[1730646016038,3.90361516,159.42,159.29,7.17862776]
[1730646016352,3.90361516,159.41,159.33,3.1387]
[1730646016548,3.90361516,159.4,159.33,3.1387]
[1730646016737,3.90361516,159.39,159.31,3.1392]
[1730646016941,3.90361516,159.39,159.29,4.1138]
[1730646016942,3.90361516,159.38,159.29,4.1138]
[1730646017149,3.90361516,159.37,159.29,4.1138]
[1730646017341,4.2,159.38,159.17,12.5671]
[1730646017342,4.2,159.38,159.17,6.2841]
[1730646017551,4.2,159.38,159.21,8.1746]
[1730646017552,4.23887998,159.37,159.21,8.1746]
[1730646017852,3.1394,159.31,159.27,3.1399]
[1730646018256,4.2,159.33,159.21,11.31639086]
[1730646018556,4.2,159.33,159.28,3.1397]
[1730646019243,3.1392,159.32,159.28,3.1397]
[1730646020039,7.3389,159.33,159.21,11.31639086]
[1730646020249,18.88,159.42,159.21,11.31639086]
[1730646020452,26.99124558,159.41,159.21,11.31639086]
[1730646020654,3.91124558,159.4,159.33,3.1388]
[1730646020849,8.11124558,159.4,159.33,3.1388]
[1730646021047,4.2,159.4,159.3,3.21710383]
[1730646021252,3.91231079,159.39,159.31,2.7094]
[1730646021447,3.91231079,159.38,159.31,2.7094]
[1730646021759,4.2,159.4,159.31,2.7094]
[1730646021946,3.91334578,159.39,159.31,2.7094]
[1730646022256,3.1382,159.37,159.33,3.1387]
[1730646023357,3.138,159.38,159.34,3.1386]
[1730646023559,18.88,159.5,159.31,8.2552]
[1730646023746,4.2,159.46,159.31,8.2552]
[1730646024056,4.2,159.46,159.36,3.1381]
[1730646024057,3.1373,159.41,159.36,3.1381]
[1730646024355,3.1373,159.41,159.31,8.2552]
[1730646025051,3.1375,159.4,159.36,3.1381]
[1730646025252,4.2,159.46,159.36,3.1381]
[1730646025461,3.1377,159.39,159.36,3.1381]
[1730646025751,4.2,159.46,159.39,3.1376]
[1730646025953,3.9124782,159.45,159.31,8.2552]
[1730646026152,3.9124782,159.44,159.31,8.2552]
[1730646026353,4.2,159.48,159.41,3.1372]
[1730646026559,3.91318903,159.47,159.41,3.1372]
[1730646026753,3.91318903,159.46,159.41,3.1372]
[1730646026949,3.91318903,159.47,159.41,3.1372]
[1730646027154,3.91318903,159.46,159.41,3.1372]
[1730646027364,3.91318903,159.45,159.41,3.1372]
[1730646027544,4.2,159.48,159.39,5.842]
[1730646027749,4.2,159.48,159.39,2.7045]
[1730646027955,3.91226215,159.47,159.39,2.7045]
[1730646028150,3.1369,159.44,159.4,3.1373]
[1730646028755,3.1366,159.45,159.42,3.1371]
[1730646029052,3.1366,159.45,159.39,2.7045]
[1730646029252,3.1367,159.44,159.41,3.1372]
[1730646029452,3.1367,159.44,159.39,2.7045]
[1730646029453,4.2,159.48,159.39,2.7045]
[1730646029662,3.90827373,159.47,159.39,2.7045]
[1730646029861,3.1372,159.42,159.39,5.8422]
[1730646030158,4.2,159.48,159.39,2.7045]
[1730646030352,3.90802294,159.47,159.39,2.7045]
[1730646030554,3.90802294,159.46,159.39,2.7045]
[1730646030753,3.90802294,159.45,159.39,2.7045]
[1730646031064,3.137,159.43,159.4,3.1374]
[1730646031265,4.2,159.48,159.39,2.7045]
[1730646031448,3.90777698,159.47,159.39,2.7045]
[1730646031653,3.1363,159.46,159.39,5.89440342]
[1730646031958,4.2,159.48,159.39,5.89440342]
[1730646032153,3.90757068,159.47,159.39,5.89440342]
[1730646032355,3.90757068,159.46,159.39,5.89440342]
[1730646032553,4.2,159.48,159.39,2.7045]
[1730646032755,3.90624207,159.47,159.39,2.7045]
[1730646033067,3.90624207,159.46,159.39,2.7045]
[1730646033259,3.1363,159.47,159.44,3.1367]
[1730646033459,3.1363,159.47,159.4,4.47143647]
[1730646033959,65.64400316,159.52,159.4,8.67143647]
[1730646034268,3.9033787,159.51,159.4,8.67143647]
[1730646034463,61.44400316,159.52,159.4,8.67143647]
[1730646034773,3.90175147,159.51,159.4,8.67143647]
[1730646034957,3.1352,159.52,159.4,8.67143647]
[1730646035156,3.90166602,159.51,159.4,8.67143647]
[1730646035364,3.1347,159.54,159.5,3.1354]
[1730646035563,22.01918266,159.67,159.51,4.2]
[1730646035766,3.90090832,159.66,159.52,1.4154]
[1730646035957,3.90090832,159.65,159.53,3.11754519]
[1730646036158,3.1337,159.6,159.54,3.1346]
[1730646036567,23.08,159.66,159.52,1.4154]
[1730646036868,3.1338,159.59,159.52,5.6154]
[1730646037063,23.08,159.66,159.52,5.6154]
[1730646037263,3.89259845,159.65,159.52,5.6154]
[1730646037466,23.08,159.66,159.52,5.6154]
[1730646037467,3.89259845,159.64,159.52,5.6154]
[1730646037666,3.89259845,159.63,159.52,4.5505]
[1730646037859,3.89259845,159.62,159.52,4.5505]
[1730646038056,3.89259845,159.61,159.52,4.5505]
[1730646038270,0.3348,159.63,159.52,4.5505]
[1730646038271,3.88803076,159.6,159.52,4.5505]
[1730646038469,3.134,159.58,159.53,3.1348]
[1730646038860,3.1343,159.57,159.51,2.7272]
[1730646039061,4.2,159.61,159.51,2.7272]
[1730646039263,3.88441062,159.6,159.51,2.7272]
[1730646039462,4.2,159.61,159.51,2.7272]
[1730646039676,3.88127121,159.6,159.51,2.7272]
[1730646039876,4.2,159.61,159.51,2.7272]
[1730646040063,3.1345,159.56,159.51,2.7272]
[1730646040377,4.2,159.61,159.44,4.2]
[1730646040378,23.08,159.61,159.44,4.2]
[1730646040562,3.1351,159.53,159.47,3.1359]
[1730646040762,3.1351,159.53,159.45,3.07401162]
[1730646040970,3.1351,159.53,159.44,6.9386]
[1730646040971,4.2,159.56,159.44,6.9386]
[1730646041172,3.1346,159.55,159.47,3.136]
[1730646041473,3.1346,159.55,159.47,3.09156845]
[1730646041676,3.1346,159.55,159.44,6.9386]
[1730646042262,3.1353,159.52,159.45,3.13765511]
[1730646042671,4.2,159.56,159.44,6.9386]
[1730646042876,3.1354,159.51,159.44,6.9386]
[1730646043062,4.2,159.56,159.44,6.9386]
[1730646043463,3.1352,159.52,159.44,6.9386]
[1730646043674,4.2,159.61,159.44,6.9386]
[1730646043884,3.87298592,159.6,159.44,6.9386]
[1730646044069,4.2,159.61,159.44,6.9386]
[1730646044266,22.75180803,159.6,159.44,6.9386]
[1730646044571,18.88,159.58,159.45,3.13099482]
[1730646044770,18.88,159.58,159.44,2.7386]
[1730646045080,18.88,159.56,159.37,7.33291801]
[1730646045274,18.88,159.54,159.43,3.1367]
[1730646045479,4.2,159.56,159.38,2.6562]
[1730646045976,4.2,159.56,159.45,3.1363]
[1730646046167,22.74777864,159.55,159.38,2.6562]
[1730646046371,18.88,159.55,159.38,2.6562]
[1730646046872,3.1361,159.48,159.43,3.1368]
[1730646047075,18.88,159.55,159.38,2.6562]
[1730646047280,26.94574986,159.54,159.38,6.8562]
[1730646047473,4.2,159.53,159.42,3.137]
[1730646047668,4.2,159.53,159.38,6.8562]
[1730646047883,1.3428,159.52,159.38,6.8562]
[1730646048073,3.1363,159.47,159.38,6.8562]
[1730646048379,1.3428,159.52,159.38,6.8562]
[1730646048783,1.3428,159.52,159.39,1.3983]
[1730646049172,3.1361,159.48,159.39,1.3983]
[1730646049672,3.1363,159.47,159.39,1.3983]
[1730646049888,4.2,159.53,159.39,1.3983]
[1730646050375,3.1358,159.49,159.39,1.3983]
[1730646050581,4.2,159.53,159.39,1.3983]
[1730646050776,3.1355,159.5,159.43,3.1368]
[1730646051086,1.3071,159.52,159.39,1.3983]
[1730646051576,0.3348,159.51,159.39,1.3983]
[1730646052084,3.1366,159.45,159.41,3.1372]
[1730646052282,0.3348,159.51,159.39,1.3983]
[1730646052577,3.1363,159.47,159.43,3.1368]
[1730646052983,1.3071,159.52,159.43,3.1368]
[1730646053773,1.3071,159.52,159.42,3.1369]
[1730646053979,1.3071,159.52,159.39,1.3983]
[1730646054377,3.1356,159.5,159.39,1.3983]
[1730646054881,3.1356,159.5,159.47,3.1361]
[1730646055074,4.2,159.53,159.39,1.3983]
[1730646055677,3.1358,159.49,159.39,1.3983]
[1730646056176,3.1353,159.52,159.48,3.1357]
[1730646056482,4.2,159.53,159.43,4.2]
[1730646056684,3.1355,159.51,159.47,3.136]
[1730646056880,0.3348,159.59,159.45,3.07967958]
[1730646057078,4.2,159.58,159.46,1.3837]
[1730646057285,3.1353,159.52,159.48,3.1358]
[1730646057584,3.1353,159.52,159.46,4.0312]
[1730646057787,3.1353,159.52,159.47,3.136]
[1730646057983,3.1353,159.52,159.46,4.0312]
[1730646058287,4.2,159.58,159.48,3.1358]
[1730646059182,3.1353,159.52,159.48,3.1358]
[1730646059770,3.1342,159.58,159.54,3.1346]
[1730646060093,1.3392,159.6,159.48,4.2]
[1730646060389,3.1343,159.57,159.54,3.1347]
[1730646060573,4.2,159.61,159.48,4.2]
[1730646060972,3.134,159.58,159.55,3.1345]
[1730646061573,3.134,159.58,159.54,3.1347]
[1730646062191,4.2,159.61,159.52,3.135]
[1730646062392,4.2,159.61,159.48,4.2]
[1730646063395,4.2,159.61,159.51,3.1352]
[1730646063890,3.1347,159.55,159.51,3.1352]
[1730646064490,3.1344,159.56,159.5,3.1354]
[1730646064682,4.2,159.61,159.46,8.2312]
[1730646065079,1.3853,159.65,159.46,8.2312]
[1730646065288,8.06386509,159.64,159.46,8.2312]
[1730646065491,3.86386509,159.63,159.46,8.2312]
[1730646065681,4.2,159.64,159.46,14.5036]
[1730646065888,4.2,159.64,159.46,8.2312]
[1730646066091,4.2,159.68,159.47,1.15198345]
[1730646066292,4.2,159.68,159.51,6.2704]
[1730646066489,4.2,159.68,159.52,4.2]
[1730646066788,4.2,159.68,159.58,3.1339]
[1730646066994,4.2,159.68,159.53,4.0659]
[1730646067187,18.88,159.67,159.53,7.15602069]
[1730646067387,4.2,159.68,159.53,4.46662069]
[1730646067388,18.88,159.65,159.53,4.46662069]
[1730646067595,18.88,159.63,159.53,1.3765]
[1730646067798,5.5924,159.62,159.53,1.3765]
[1730646068096,24.4724,159.62,159.46,2.6894]
[1730646068303,24.4724,159.62,159.47,1.3951]
[1730646068495,3.1341,159.58,159.47,1.3951]
[1730646068688,0.3343,159.64,159.47,4.55168164]
[1730646068893,1.4038,159.61,159.47,1.3951]
[1730646069197,3.1348,159.54,159.47,1.3951]
[1730646069385,1.4038,159.61,159.47,1.3951]
[1730646069582,3.1351,159.53,159.49,3.1357]
[1730646070186,4.2,159.57,159.49,3.1357]
[1730646070386,3.1352,159.52,159.48,3.1358]
[1730646070596,3.1352,159.52,159.47,1.3951]
[1730646070792,3.135,159.53,159.47,1.3951]
[1730646071304,3.1348,159.54,159.5,3.1354]
[1730646072903,3.1351,159.53,159.49,3.1357]
[1730646073202,23.02,159.57,159.47,1.3951]
[1730646073400,23.02,159.57,159.43,1.3359]
[1730646073695,0.3344,159.56,159.4,4.2]
[1730646073897,3.1354,159.51,159.4,3.1374]
[1730646074196,0.3344,159.56,159.38,3.9914]
[1730646074197,24.3844,159.5,159.38,3.9914]
[1730646074399,4.2,159.53,159.38,2.6555]
[1730646074603,4.2,159.53,159.39,1.3694]
[1730646075099,4.2,159.53,159.4,4.2]
[1730646076401,4.2,159.53,159.43,3.1367]
[1730646076402,3.1354,159.51,159.43,3.1367]
[1730646076604,3.1354,159.51,159.43,3.10284684]
[1730646076805,3.1354,159.51,159.4,4.2]
[1730646077491,3.1354,159.51,159.43,3.1368]
[1730646077688,3.1354,159.51,159.43,3.09751495]
[1730646077904,3.1354,159.51,159.4,4.2]
[1730646078203,3.1354,159.51,159.47,3.136]
[1730646078598,3.1358,159.49,159.45,3.1365]
[1730646079694,4.2,159.53,159.4,4.2]
[1730646079918,4.2,159.53,159.39,1.3694]
[1730646080106,3.1361,159.48,159.39,1.3694]
[1730646080305,4.2,159.53,159.39,1.3694]
[1730646080693,3.1361,159.47,159.39,1.3694]
[1730646081601,3.1361,159.47,159.43,3.1368]
[1730646081904,3.1361,159.47,159.39,1.3694]
[1730646082106,3.1361,159.47,159.43,3.1368]
[1730646083004,4.2,159.53,159.45,3.1363]
[1730646083005,3.1359,159.49,159.45,3.1363]
[1730646083799,4.2,159.53,159.39,1.3694]
[1730646083800,3.136,159.48,159.39,1.3694]
[1730646084105,3.136,159.48,159.44,3.1367]
[1730646084601,4.2,159.53,159.39,1.3694]
[1730646084602,23.02,159.53,159.39,1.3694]
[1730646084804,26.89248791,159.52,159.39,1.3694]
[1730646085101,3.1367,159.45,159.41,3.1372]
[1730646085307,23.02,159.52,159.39,1.3694]
[1730646085605,3.1371,159.42,159.39,3.1375]
[1730646085803,4.2,159.44,159.31,4.2]
[1730646086111,6.2695,159.54,159.32,1.4061]
[1730646086112,4.2,159.43,159.32,1.4061]
[1730646086308,4.2,159.42,159.32,4.46517728]
[1730646086602,4.2,159.42,159.35,3.1384]
[1730646086603,3.1377,159.39,159.35,3.1384]
[1730646086992,4.2,159.42,159.32,4.46517728]
[1730646087192,3.1376,159.4,159.36,3.1382]
[1730646087802,4.2,159.42,159.32,4.46517728]
[1730646088004,4.2,159.42,159.34,3.1385]
[1730646088612,3.1379,159.39,159.35,3.1384]
[1730646088819,4.2,159.42,159.32,1.4061]
[1730646089308,4.2,159.42,159.32,4.58789838]
[1730646089606,3.1377,159.39,159.34,3.1385]
[1730646090105,3.1377,159.39,159.32,4.5176032]
[1730646090310,3.1377,159.39,159.35,3.1384]
[1730646090507,4.2,159.42,159.32,1.4061]
[1730646091009,3.1378,159.39,159.32,4.48873196]
[1730646091309,4.2,159.42,159.32,4.48873196]
[1730646091697,3.138,159.38,159.34,3.1387]
[1730646091903,4.2,159.42,159.34,3.1387]
[1730646092505,3.138,159.38,159.34,3.1387]
[1730646092912,4.2,159.42,159.32,1.4061]
[1730646093105,3.1379,159.38,159.32,1.4061]
[1730646093510,3.1379,159.38,159.34,3.1385]
[1730646093811,3.1379,159.38,159.32,4.52199432]
[1730646093812,3.1377,159.39,159.32,4.52199432]
[1730646094208,3.1377,159.39,159.35,3.1383]
[1730646095107,3.1379,159.38,159.35,3.1383]
[1730646096905,3.1375,159.41,159.37,3.1379]
[1730646097223,3.1375,159.41,159.32,4.52199432]
[1730646097418,4.24,159.43,159.32,4.52199432]
[1730646098012,3.1375,159.4,159.35,3.1384]
[1730646098216,3.1375,159.4,159.32,4.52199432]
[1730646098521,26.7054,159.49,159.32,4.52199432]